fUST/lending_fUST_20240122
["ID","MTS","AMOUNT","RATE_DAILY","PERIOD"]
[312513687,1705938154648,-437.91674394,0.00042095,30]
[312513688,1705938154672,-500.0,0.00042095,30]
[312513689,1705938154697,-500.0,0.00042095,30]
[312513690,1705938154722,-500.0,0.00042095,30]
[312513691,1705938154747,-500.0,0.00042095,30]
[312513692,1705938154772,-500.0,0.00042095,30]
[312513693,1705938154797,-546.99873997,0.00042095,30]
[312513694,1705938154822,-500.0,0.00042095,30]
[312513695,1705938154846,-500.0,0.00042095,30]
[312513696,1705938154870,-500.0,0.00042095,30]
[312513697,1705938154894,-500.0,0.00042095,30]
[312513698,1705938154919,-500.0,0.00042095,30]
[312513699,1705938154944,-500.0,0.00042095,30]
[312513700,1705938154969,-437.54630488,0.00042095,30]
[312513701,1705938154994,-529.18,0.00042191,31]
[312513702,1705938155019,-1114.81,0.00042191,31]
[312513703,1705938155145,-435.44318339,0.00042191,31]
[312513704,1705938219682,-4.1643939,5.478e-05,2]
[312513705,1705938288250,6661.8133947,5.588e-05,2]
[312513706,1705938302322,979.83497316,5.885e-05,2]
[312513707,1705938358989,2000.00000001,0.00029,30]
[312513789,1705938394197,155.02015262,5.885e-05,2]
[312513790,1705938399973,250.0,5.532e-05,2]
[312513863,1705938572126,-155.0,6.508e-05,2]
[312513864,1705938572151,-1845.0,6.508e-05,2]
[312513865,1705938573199,-1901.05559912,6.508e-05,2]
[312513866,1705938573223,-98.94440088,6.508e-05,2]
[312513867,1705938574083,-2000.0,6.508e-05,2]
[312513868,1705938574841,-2000.0,6.508e-05,2]
[312513869,1705938575596,-526.75292248,6.507e-05,2]
[312513870,1705938575628,-155.0,6.507e-05,2]
[312513871,1705938575661,-1318.24707752,6.508e-05,2]
[312513872,1705938592856,-199.25222227,6.474e-05,2]
[312513873,1705938592880,-175.22193864,6.474e-05,2]
[312513874,1705938592903,-154.95351395,6.475e-05,2]
[312513875,1705938592927,-174.46346488,6.506e-05,2]
[312513876,1705938592950,-226.78460643,6.507e-05,2]
[312513877,1705938592973,-822.32425383,6.507e-05,2]
[312513881,1705938633827,2992.7707043,5.507e-05,2]
[312513884,1705938634113,-155.0,6.503e-05,2]
[312513885,1705938634123,-155.0,6.503e-05,2]
[312513886,1705938634132,-561.64006482,6.503e-05,2]
[312513887,1705938634142,-260.87494487,6.504e-05,2]
[312513888,1705938634152,-155.0,6.504e-05,2]
[312513889,1705938634161,-15220.19994985,6.504e-05,2]
[312513890,1705938634171,-20902.38645894,6.504e-05,2]
[312513891,1705938634180,-19701.14547142,6.504e-05,2]
[312513893,1705938634190,-294.88989743,6.505e-05,2]
[312513894,1705938634199,-35413.111012,6.505e-05,2]
[312513895,1705938634208,-18904.87156494,6.505e-05,2]
[312513896,1705938634218,-1439.19025016,6.506e-05,2]
[312513897,1705938634227,-13451.45095772,6.506e-05,2]
[312513898,1705938634239,-268.37117658,6.506e-05,2]
[312513899,1705938634248,-19867.27856324,6.506e-05,2]
[312513900,1705938634257,-175.22193864,6.506e-05,2]
[312513901,1705938634266,-265.44404107,6.506e-05,2]
[312513902,1705938634275,-309.87605268,6.506e-05,2]
[312513903,1705938634283,-2923.73134529,6.507e-05,2]
[312513904,1705938634292,-526.75292248,6.507e-05,2]
[312513905,1705938634303,-1242.55121556,6.507e-05,2]
[312513906,1705938634312,-680.10116762,6.507e-05,2]
[312513907,1705938634321,-75790.19317408,6.508e-05,2]
[312513908,1705938634330,-588.14342429,6.514e-05,2]
[312513909,1705938634339,-2002.61413331,6.53e-05,2]
[312513910,1705938634348,-2002.61413331,6.53e-05,2]
[312513911,1705938634357,-2002.61413331,6.53e-05,2]
[312513912,1705938634367,-2002.61413331,6.53e-05,2]
[312513913,1705938634378,-2002.61413331,6.53e-05,2]
[312513914,1705938634389,-2002.61413331,6.53e-05,2]
[312513915,1705938634398,-2002.61413331,6.53e-05,2]
[312513916,1705938634407,-2002.61413331,6.53e-05,2]
[312513917,1705938634417,-2002.61413331,6.53e-05,2]
[312513918,1705938634427,-2002.61413331,6.53e-05,2]
[312513919,1705938634436,-284.33304252,6.532e-05,2]
[312513920,1705938634445,-1787.64718036,6.535e-05,2]
[312513921,1705938634455,-167.00483785,6.555e-05,2]
[312513922,1705938634465,-309.51610563,6.577e-05,2]
[312513923,1705938634474,-203.88667215,6.579e-05,2]
[312513924,1705938634483,-3024.16310446,6.579e-05,2]
[312513925,1705938634492,-156.33928042,6.579e-05,2]
[312513926,1705938634502,-176.33707755,6.579e-05,2]
[312513927,1705938634511,-156.66918757,6.579e-05,2]
[312513928,1705938634521,-186.70689344,6.579e-05,2]
[312513929,1705938634530,-156.45218725,6.58e-05,2]
[312513930,1705938634539,-11033.00619666,6.581e-05,2]
[312513931,1705938634550,-877.12356419,6.581e-05,2]
[312513932,1705938634560,-160.36108711,6.581e-05,2]
[312513933,1705938634569,-307.60539626,6.581e-05,2]
[312513934,1705938634579,-175.35139766,6.581e-05,2]
[312513935,1705938634588,-309.87605268,6.582e-05,2]
[312513936,1705938634597,-309.81410224,6.582e-05,2]
[312513937,1705938634607,-1816.48615871,6.582e-05,2]
[312513938,1705938634616,-282.68327169,6.582e-05,2]
[312513939,1705938634625,-226.39153408,6.582e-05,2]
[312513940,1705938634635,-174.866365,6.582e-05,2]
[312513941,1705938634644,-176.80344435,6.582e-05,2]
[312513942,1705938634653,-298.40677269,6.582e-05,2]
[312513943,1705938634663,-158.96191588,6.582e-05,2]
[312513944,1705938634672,-155.25728071,6.582e-05,2]
[312513945,1705938634682,-155.76848449,6.582e-05,2]
[312513946,1705938634692,-301.40690811,6.582e-05,2]
[312513947,1705938634701,-2045.80640197,6.586e-05,2]
[312513948,1705938634710,-155.15114735,6.586e-05,2]
[312513949,1705938634719,-258.88009432,6.586e-05,2]
[312513950,1705938634729,-302.26715568,6.586e-05,2]
[312513951,1705938634739,-158.2592317,6.586e-05,2]
[312513952,1705938634748,-302.84435405,6.586e-05,2]
[312513953,1705938634757,-2103.40493137,6.587e-05,2]
[312513954,1705938634767,-156.06983439,6.587e-05,2]
[312513955,1705938634776,-200.81357987,6.587e-05,2]
[312513956,1705938634785,-304.02456117,6.587e-05,2]
[312513957,1705938634794,-157.90368326,6.587e-05,2]
[312513958,1705938634806,-309.5529275,6.587e-05,2]
[312513959,1705938634816,-215.98200691,6.587e-05,2]
[312513960,1705938634825,-158.75094672,6.587e-05,2]
[312513961,1705938634834,-200.0,6.587e-05,2]
[312513962,1705938634843,-166.58282474,6.587e-05,2]
[312513963,1705938634853,-175.06038603,6.587e-05,2]
[312513964,1705938634862,-1293.76681809,6.587e-05,2]
[312513965,1705938635016,-251.17115687,6.587e-05,2]
[312513966,1705938635038,-161.06319152,6.587e-05,2]
[312513967,1705938635049,-2073.9279871,6.588e-05,2]
[312513968,1705938635058,-470.67463112,6.588e-05,2]
[312513969,1705938635067,-15915.17297811,7e-05,2]
[312513970,1705938635076,-24900.0,7.397e-05,2]
[312513971,1705938635085,-681.61900553,7.538e-05,2]
[312513972,1705938635094,-402.52163885,7.538e-05,2]
[312513973,1705938635103,-155.19330475,7.541e-05,2]
[312513974,1705938635112,-1741.02914519,8e-05,2]
[312513975,1705938635121,-155.09769188,8e-05,2]
[312513976,1705938635130,-166.67526662,8.389e-05,2]
[312513977,1705938635140,-1575.31449791,8.389e-05,2]
[312513978,1705938635149,-1294.27151942,8.389e-05,2]
[312513979,1705938635158,-243.57224202,8.389e-05,2]
[312513980,1705938635169,-155.96557472,8.389e-05,2]
[312513981,1705938635179,-265.48221302,8.389e-05,2]
[312513982,1705938635189,-257.0795627,8.389e-05,2]
[312513983,1705938635198,-161.02224773,8.389e-05,2]
[312513984,1705938635207,-276.78573638,8.389e-05,2]
[312513985,1705938635217,-206.74155667,8.39e-05,2]
[312513986,1705938635226,-177.7149731,8.39e-05,2]
[312513987,1705938635235,-1727.5880169,8.39e-05,2]
[312513988,1705938635245,-246.21885002,8.39e-05,2]
[312513989,1705938635256,-155.46305651,9e-05,2]
[312513990,1705938635266,-178.76422807,9.989e-05,2]
[312513991,1705938635275,-190.7413264,9.989e-05,2]
[312513992,1705938635285,-186.53501078,9.991e-05,2]
[312513993,1705938635294,-180.69712263,9.995e-05,2]
[312513994,1705938635305,-213.43652609,0.0001,2]
[312513995,1705938635314,-163.12898653,0.0001,2]
[312513996,1705938635323,-154.98450155,0.0001,2]
[312513997,1705938635333,-7960.18375069,0.0001,2]
[312513998,1705938635342,-763.24520182,0.0001,2]
[312513999,1705938635351,-563.75465003,0.0001,2]
[312514000,1705938635361,-193.50366925,0.0001,2]
[312514001,1705938635371,-4928.23961202,0.0001,2]
[312514002,1705938635382,-309.78320129,0.0001,2]
[312514003,1705938635394,-159.13979,0.00011222,2]
[312514004,1705938635403,-1787.64718032,0.00012034,2]
[312514005,1705938635413,-159.13979,0.00012223,2]
[312514006,1705938635423,-155.46165684,0.000129,2]
[312514007,1705938635433,-159.13979,0.00013224,2]
[312514008,1705938635442,-154.98450155,0.0001369,2]
[312514009,1705938635453,-1507.6392133,0.00013698,2]
[312514010,1705938635462,-3000.0,0.00013699,2]
[312514011,1705938635472,-270.6612929,0.00013699,2]
[312514012,1705938635481,-3239.111605,0.00013699,2]
[312514013,1705938635491,-224.31517419,0.000137,2]
[312514014,1705938635500,-159.13979,0.00014225,2]
[312514015,1705938635510,-155.0,0.00015,2]
[312514016,1705938635520,-247.29821682,0.00015,2]
[312514017,1705938635529,-2706.76932127,0.00015,2]
[312514018,1705938635539,-1266.7890629,0.00015,2]
[312514019,1705938635549,-687.96014716,0.00015,2]
[312514020,1705938635558,-547.3613648,0.00015,2]
[312514021,1705938635568,-154.98450155,0.00015,2]
[312514022,1705938635578,-523.14187672,0.000165,2]
[312514023,1705938635587,-874.37604694,0.00017235,2]
[312514024,1705938635597,-1787.64718032,0.00017632,2]
[312514025,1705938635606,-10537.96841435,0.00017898,2]
[312514026,1705938635615,-1582.38308236,0.00019,2]
[312514027,1705938635624,-163.985491,0.00019178,2]
[312514028,1705938635634,-161.717819,0.00019178,2]
[312514029,1705938635644,-1114.53942019,0.000195,2]
[312514030,1705938635653,-276000.0,0.000199,2]
[312514031,1705938635663,-155.0,0.0002,2]
[312514032,1705938635673,-323.13003236,0.0002,2]
[312514033,1705938635683,-177.94716191,0.0002,2]
[312514034,1705938635693,-678.6288756,0.0002,2]
[312514035,1705938635702,-850.30063575,0.0002,2]
[312514036,1705938635712,-667.24083957,0.0002,2]
[312514037,1705938635722,-154.98450155,0.0002,2]
[312514038,1705938635733,-154.98450155,0.0002,2]
[312514039,1705938635743,-154.98450155,0.0002,2]
[312514040,1705938635753,-1197.97622761,0.0002,2]
[312514041,1705938635762,-155.66697436,0.0002,2]
[312514042,1705938635773,-177.14198927,0.0002,2]
[312514043,1705938635782,-190.6950884,0.0002,2]
[312514044,1705938635792,-154.98450155,0.0002,2]
[312514045,1705938635802,-154.98450155,0.0002,2]
[312514046,1705938635811,-200.0,0.0002,2]
[312514047,1705938635821,-907.59590683,0.00020124,2]
[312514048,1705938635829,-3239.111605,0.00020548,2]
[312514049,1705938635838,-327.51224259,0.00021,2]
[312514050,1705938635847,-598.65430698,0.00021917,2]
[312514051,1705938635856,-166.666666,0.00021918,2]
[312514052,1705938635866,-293.4468762,0.00022,4]
[312514053,1705938635875,-425.98515357,0.00022,2]
[312514054,1705938635884,-3968.39951784,0.00022,2]
[312514055,1705938635894,-166.666666,0.00022431,2]
[312514056,1705938635903,-999.80003999,0.00022635,2]
[312514057,1705938635913,-999.60015994,0.00022647,2]
[312514058,1705938635922,-166.666666,0.00022944,2]
[312514059,1705938635931,-1571.50470749,0.00023,2]
[312514060,1705938635940,-1787.64718032,0.00023231,2]
[312514061,1705938635950,-166.666666,0.00023456,2]
[312514062,1705938635959,-166.666666,0.00023969,2]
[312514063,1705938635968,-4014.03339386,0.00024,2]
[312514064,1705938635978,-159.76898313,0.000243,2]
[312514065,1705938635987,-166.666666,0.00024482,2]
[312514066,1705938635997,-1000.0,0.00024657,2]
[312514067,1705938636007,-1000.0,0.00024657,2]
[312514068,1705938636016,-421.46347451,0.00024657,2]
[312514069,1705938636025,-575.231723,0.00024658,2]
[312514070,1705938636035,-380.0,0.00024658,2]
[312514071,1705938636044,-200.0,0.00024658,2]
[312514072,1705938636055,-824.33300328,0.000247,2]
[312514073,1705938636064,-498.88477678,0.0002496,5]
[312514074,1705938636073,-500.0,0.00024999,2]
[312514075,1705938636082,-175.85577052,0.00024999,2]
[312514076,1705938636091,-500.0,0.00024999,2]
[312514077,1705938636100,-679.71377977,0.00025,2]
[312514078,1705938636109,-295.02156771,0.00025,2]
[312514079,1705938636118,-155.0,0.00025,2]
[312514080,1705938636128,-4723.24260277,0.00025,2]
[312514081,1705938636137,-7381.29040931,0.00025,2]
[312514082,1705938636147,-154.98450155,0.00025,2]
[312514083,1705938636156,-209.84243657,0.00025,2]
[312514084,1705938636165,-155.376373,0.00025,2]
[312514085,1705938636174,-1007.29215616,0.00025,2]
[312514086,1705938636183,-575.231723,0.0002544,2]
[312514087,1705938636193,-4010.37580387,0.00026,2]
[312514088,1705938636202,-575.231723,0.00026223,2]
[312514089,1705938636213,-1164.07598505,0.000264,2]
[312514090,1705938636222,-290.32272867,0.00027,2]
[312514091,1705938636231,-2807.0,0.00027,2]
[312514092,1705938636240,-575.231723,0.00027006,2]
[312514093,1705938636249,-155.0,0.00027397,2]
[312514094,1705938636259,-400.0,0.00027397,2]
[312514095,1705938636268,-30205.38,0.00027397,3]
[312514096,1705938636276,-12113.41536449,0.00027397,3]
[312514253,1705938640472,-2034.57165769,6.502e-05,2]
[312514255,1705938640481,-81207.38465248,6.503e-05,2]
[312514257,1705938640491,-3405.9978279,0.0002742,2]
[312514258,1705938640500,-647.20379925,0.0002772,2]
[312514260,1705938640509,-575.231723,0.00027789,2]
[312514262,1705938640519,-19491.75746829,0.0002841,2]
[312514264,1705938640528,-575.231723,0.00028571,2]
[312514266,1705938640537,-161.58015572,0.00028697,2]
[312514268,1705938640546,-499.71347203,0.00028697,2]
[312514270,1705938640557,-709.18573505,0.00028697,2]
[312514272,1705938640566,-903.63325516,0.00028697,2]
[312514274,1705938640575,-716.75305059,0.00028697,2]
[312514276,1705938640585,-277.28029125,0.00028697,2]
[312514278,1705938640594,-269.91194615,0.00028697,2]
[312514280,1705938640603,-374.25522984,0.00028697,2]
[312514281,1705938640612,-178.37323012,0.00028697,2]
[312514283,1705938640623,-158.15574578,0.00028697,2]
[312514285,1705938640632,-1746.92844091,0.00028697,2]
[312514287,1705938640641,-155.0,0.00028767,2]
[312514289,1705938640650,-500.0,0.00028828,2]
[312514291,1705938640659,-500.0,0.00028828,2]
[312514293,1705938640669,-500.0,0.00028828,2]
[312514295,1705938640678,-500.0,0.00028828,2]
[312514297,1705938640690,-500.0,0.00028828,2]
[312514299,1705938640699,-645.98065339,0.00028828,2]
[312514301,1705938640708,-474.91621314,0.00028828,2]
[312514303,1705938640717,-500.0,0.00028828,2]
[312514305,1705938640727,-500.0,0.00028828,2]
[312514307,1705938640736,-500.0,0.00028828,2]
[312514308,1705938640746,-645.98065339,0.00028828,2]
[312514310,1705938640755,-500.0,0.00028828,2]
[312514312,1705938640765,-475.20897608,0.00028828,2]
[312514314,1705938640775,-500.0,0.00028828,2]
[312514316,1705938640784,-645.98065339,0.00028828,2]
[312514318,1705938640795,-500.0,0.00028828,2]
[312514320,1705938640806,-265.12568027,0.00028828,2]
[312514322,1705938640815,-500.0,0.00028828,2]
[312514324,1705938640824,-500.0,0.00028828,2]
[312514326,1705938640834,-645.98065339,0.00028828,2]
[312514328,1705938640844,-500.0,0.00028828,2]
[312514330,1705938640853,-500.0,0.00028828,2]
[312514332,1705938640862,-500.0,0.00028828,2]
[312514334,1705938640872,-216.56384326,0.00028828,2]
[312514336,1705938640881,-645.98065339,0.00028828,2]
[312514338,1705938640890,-500.0,0.00028828,2]
[312514339,1705938640899,-500.0,0.00028828,2]
[312514341,1705938640909,-645.98065339,0.00028828,2]
[312514343,1705938640918,-500.0,0.00028828,2]
[312514345,1705938640928,-500.0,0.00028828,2]
[312514347,1705938640937,-645.98065339,0.00028828,2]
[312514349,1705938640946,-500.0,0.00028828,2]
[312514351,1705938640956,-500.0,0.00028828,2]
[312514353,1705938640965,-645.98065339,0.00028828,2]
[312514355,1705938640974,-500.0,0.00028828,2]
[312514357,1705938640984,-500.0,0.00028828,2]
[312514359,1705938640993,-500.0,0.00028828,2]
[312514361,1705938641002,-645.98065339,0.00028828,2]
[312514363,1705938641011,-500.0,0.00028828,2]
[312514365,1705938641020,-500.0,0.00028828,2]
[312514367,1705938641029,-645.98065339,0.00028828,2]
[312514368,1705938641038,-500.0,0.00028828,2]
[312514370,1705938641047,-500.0,0.00028828,2]
[312514372,1705938641058,-645.98065339,0.00028828,2]
[312514374,1705938641067,-500.0,0.00028828,2]
[312514376,1705938641077,-500.0,0.00028828,2]
[312514378,1705938641086,-500.0,0.00028828,2]
[312514380,1705938641095,-645.98065339,0.00028828,2]
[312514382,1705938641105,-500.0,0.00028828,2]
[312514384,1705938641115,-645.98065339,0.00028828,2]
[312514386,1705938641124,-500.0,0.00028828,2]
[312514388,1705938641133,-500.0,0.00028828,2]
[312514390,1705938641142,-645.98065339,0.00028828,2]
[312514392,1705938641151,-500.0,0.00028828,2]
[312514394,1705938641161,-645.98065339,0.00028828,2]
[312514396,1705938641170,-500.0,0.00028828,2]
[312514397,1705938641179,-500.0,0.00028828,2]
[312514399,1705938641188,-500.0,0.00028828,2]
[312514401,1705938641197,-216.10868806,0.00028828,2]
[312514403,1705938641205,-645.98065339,0.00028828,2]
[312514405,1705938641215,-500.0,0.00028828,2]
[312514407,1705938641224,-645.98065339,0.00028828,2]
[312514409,1705938641233,-500.0,0.00028828,2]
[312514411,1705938641242,-500.0,0.00028828,2]
[312514412,1705938641251,-645.98065339,0.00028828,2]
[312514414,1705938641260,-500.0,0.00028828,2]
[312514416,1705938641269,-556.39752556,0.00028828,2]
[312514418,1705938641279,-645.98065339,0.00028828,2]
[312514420,1705938641288,-500.0,0.00028828,2]
[312514422,1705938641296,-645.98065339,0.00028828,2]
[312514424,1705938641307,-500.0,0.00028828,2]
[312514426,1705938641316,-500.0,0.00028828,2]
[312514428,1705938641325,-645.98065339,0.00028828,2]
[312514430,1705938641335,-645.98065339,0.00028828,2]
[312514432,1705938641344,-645.98065339,0.00028828,2]
[312514434,1705938641352,-500.0,0.00028828,2]
[312514436,1705938641363,-645.98065339,0.00028828,2]
[312514438,1705938641378,-500.0,0.00028828,2]
[312514439,1705938641387,-645.98065339,0.00028828,2]
[312514441,1705938641396,-645.98065339,0.00028828,2]
[312514443,1705938641405,-500.0,0.00028828,2]
[312514445,1705938641416,-500.0,0.00028828,2]
[312514447,1705938641425,-645.98065339,0.00028828,2]
[312514449,1705938641434,-645.98065339,0.00028828,2]
[312514451,1705938641443,-645.98065339,0.00028828,2]
[312514453,1705938641452,-645.98065339,0.00028828,2]
[312514455,1705938641463,-1787.64718032,0.00028829,2]
[312514457,1705938641472,-38616.90105308,0.00028829,2]
[312514459,1705938641481,-2796.23,0.00028929,2]
[312514461,1705938641490,-2796.23,0.00028929,2]
[312514463,1705938641499,-2796.23,0.00028929,2]
[312514464,1705938641508,-2796.23,0.00028929,2]
[312514466,1705938641517,-2796.23,0.00028929,2]
[312514468,1705938641527,-2796.23,0.00028929,2]
[312514470,1705938641535,-2796.23,0.00028929,2]
[312514472,1705938641545,-2796.23,0.00028929,2]
[312514474,1705938641555,-2796.23,0.00028929,2]
[312514476,1705938641564,-2796.23,0.00028929,2]
[312514478,1705938641573,-50000.0,0.0002893,5]
[312514480,1705938641583,-50000.0,0.0002893,5]
[312514481,1705938641592,-99138.25120635,0.0002893,5]
[312514483,1705938641601,-4430.92721345,0.00028944,3]
[312514485,1705938641611,-5432.97251279,0.00028958,3]
[312514487,1705938641620,-16799.51432711,0.00028989,2]
[312514489,1705938641630,-150.89807138,0.00028999,2]
[312514491,1705938641639,-1880.79357717,0.00029,2]
[312514493,1705938641649,-155.0,0.00029,2]
[312514495,1705938641658,-1500.0,0.00029,2]
[312514497,1705938641667,-621.36018996,0.00029106,2]
[312514499,1705938641676,-208.4755949,0.00029178,2]
[312514501,1705938641685,-199.1966855,0.00029315,2]
[312514503,1705938641694,-199.1966855,0.00029315,2]
[312514504,1705938641703,-199.1966855,0.00029315,2]
[312514506,1705938641712,-198.8061655,0.00029315,2]
[312514508,1705938641721,-575.231723,0.00029354,2]
[312514510,1705938641730,-150.0,0.0002937,2]
[312514512,1705938641739,-151.0,0.00029521,2]
[312514514,1705938641748,-5076.97894418,0.0002979,7]
[312514516,1705938641757,-5000.0,0.00029863,2]
[312514518,1705938641766,-4779.70819389,0.00029956,2]
[312514520,1705938641775,-467.80174996,0.00029981,2]
[312514522,1705938641784,-9676.19616335,0.00029981,2]
[312514524,1705938641793,-1993.88053423,0.00029981,2]
[312514525,1705938641804,-1066.73155868,0.00029981,2]
[312514527,1705938641813,-4099.34669889,0.00029981,2]
[312514529,1705938641822,-3064.4892089,0.00029981,2]
[312514531,1705938641831,-661.24397121,0.00029981,2]
[312514533,1705938641840,-1000.0,0.00029981,7]
[312514535,1705938641849,-322.860231,0.00029981,2]
[312514537,1705938641858,-322.860231,0.00029981,2]
[312514539,1705938641867,-151.0,0.00029981,2]
[312514541,1705938641876,-150.0,0.00029999,2]
[312514543,1705938641885,-500.0,0.00029999,4]
[312514545,1705938641895,-490.94150797,0.00029999,4]
[312514547,1705938641904,-500.0,0.00029999,4]
[312514549,1705938641913,-500.0,0.00029999,4]
[312514551,1705938641921,-500.0,0.00029999,4]
[312514552,1705938641930,-500.0,0.00029999,4]
[312514554,1705938641939,-500.0,0.00029999,4]
[312514556,1705938641948,-500.0,0.00029999,4]
[312514558,1705938641957,-500.0,0.00029999,4]
[312514560,1705938641966,-500.0,0.00029999,4]
[312514562,1705938641975,-365.37400612,0.00029999,4]
[312514564,1705938641984,-500.0,0.00029999,4]
[312514566,1705938641992,-649.11126669,0.00029999,4]
[312514567,1705938642001,-500.0,0.00029999,4]
[312514569,1705938642011,-500.0,0.00029999,4]
[312514571,1705938642022,-500.0,0.00029999,4]
[312514573,1705938642031,-500.0,0.00029999,4]
[312514575,1705938642039,-500.0,0.00029999,4]
[312514577,1705938642048,-500.0,0.00029999,4]
[312514579,1705938642059,-500.0,0.00029999,4]
[312514581,1705938642068,-500.0,0.00029999,4]
[312514583,1705938642077,-500.0,0.00029999,4]
[312514585,1705938642087,-500.0,0.00029999,4]
[312514587,1705938642096,-213.08344152,0.00029999,4]
[312514589,1705938642105,-500.0,0.00029999,4]
[312514591,1705938642114,-500.0,0.00029999,4]
[312514593,1705938642123,-500.0,0.00029999,4]
[312514595,1705938642132,-500.0,0.00029999,4]
[312514597,1705938642141,-500.0,0.00029999,4]
[312514598,1705938642150,-500.0,0.00029999,4]
[312514600,1705938642160,-475.19798396,0.00029999,4]
[312514602,1705938642169,-500.0,0.00029999,4]
[312514604,1705938642178,-500.0,0.00029999,4]
[312514606,1705938642187,-500.0,0.00029999,4]
[312514608,1705938642196,-500.0,0.00029999,4]
[312514610,1705938642205,-500.0,0.00029999,4]
[312514612,1705938642214,-500.0,0.00029999,4]
[312514614,1705938642223,-500.0,0.00029999,4]
[312514616,1705938642232,-216.34350154,0.00029999,4]
[312514618,1705938642241,-500.0,0.00029999,4]
[312514620,1705938642250,-500.0,0.00029999,4]
[312514622,1705938642259,-537.84265613,0.00029999,4]
[312514624,1705938642268,-500.0,0.00029999,4]
[312514625,1705938642277,-175.33625285,0.00029999,4]
[312514627,1705938642286,-618.79949598,0.00029999,4]
[312514629,1705938642295,-500.0,0.00029999,4]
[312514631,1705938642304,-500.0,0.00029999,4]
[312514633,1705938642314,-500.0,0.00029999,4]
[312514635,1705938642326,-500.0,0.00029999,4]
[312514637,1705938642335,-499.99999999,0.00029999,4]
[312514639,1705938642344,-4660.0,0.0003,14]
[312514641,1705938642353,-199671.10370613,0.0003,4]
[312514643,1705938642362,-464.67563146,0.0003,2]
[312514645,1705938642371,-2371.37507479,0.0003,2]
[312514647,1705938642381,-244.14912804,0.0003,4]
[312514649,1705938642393,-657.40715545,0.0003,3]
[312514651,1705938642402,-2875.0,0.0003,2]
[312514652,1705938642411,-195.1690538,0.0003,4]
[312514654,1705938642420,-155.3990448,0.0003,2]
[312514656,1705938642430,-688.4767231,0.0003,4]
[312514658,1705938642439,-193.306001,0.0003,2]
[312514660,1705938642448,-193.306001,0.0003,2]
[312514661,1705938642457,-1500.0,0.0003,2]
[312514662,1705938642467,-160.0,0.0003,2]
[312514663,1705938642477,-151.0,0.00030044,2]
[312514664,1705938642486,-575.231723,0.00030137,2]
[312514665,1705938642495,-157.894736,0.00030137,2]
[312514666,1705938642504,-155.0,0.00030137,2]
[312514667,1705938642513,-322.860231,0.00030453,2]
[312514668,1705938642522,-322.860231,0.00030453,2]
[312514669,1705938642531,-151.0,0.00030453,2]
[312514670,1705938642540,-151.0,0.00030453,2]
[312514671,1705938642549,-151.0,0.00030453,2]
[312514672,1705938642562,-151.0,0.00030453,2]
[312514673,1705938642571,-151.0,0.00030453,2]
[312514674,1705938642580,-50000.0,0.00030453,7]
[312514675,1705938642589,-620.0680095,0.00030561,2]
[312514676,1705938642599,-151.0,0.00030567,2]
[312514677,1705938642608,-161.717819,0.00030594,2]
[312514678,1705938642618,-255.53088194,0.00030701,7]
[312514679,1705938642628,-157.894736,0.00030746,2]
[312514680,1705938642637,-543.030253,0.000308,15]
[312514681,1705938642646,-575.231723,0.0003092,2]
[312514682,1705938642655,-33351.91953257,0.00031,2]
[312514683,1705938642664,-136067.6086768,0.00031,2]
[312514684,1705938642673,-154.95351395,0.00031,4]
[312514685,1705938642682,-161.24704574,0.00031,4]
[312514686,1705938642692,-158.926865,0.00031,2]
[312514687,1705938642701,-450.0,0.00031,2]
[312514688,1705938642711,-450.0,0.00031,2]
[312514689,1705938642720,-1500.0,0.00031,2]
[312514691,1705938642730,-539.542437,0.00031,3]
[312514692,1705938642740,-151.0,0.0003109,2]
[312514693,1705938642749,-193.306001,0.00031218,2]
[312514695,1705938642759,-193.306001,0.00031218,2]
[312514697,1705938642768,-151.0,0.00031218,2]
[312514699,1705938642777,-1016.715516,0.00031218,2]
[312514701,1705938642786,-1016.715516,0.00031218,2]